bitfinex-derivatives/quotes_SOLF0:USTF0_20250924
["timestamp","ask_amount","ask_price","bid_price","bid_amount"]
[1758740083870,3.30712846,213.93,213.91,7.49]
[1758740084065,3.30712846,213.92,213.91,7.49]
[1758740084466,3.30712846,213.93,213.91,7.49]
[1758740084771,3.30712846,213.92,213.91,7.49]
[1758740084972,3.30712846,213.93,213.91,7.49]
[1758740085172,3.30712846,213.92,213.91,7.49]
[1758740085368,3.30712846,213.92,213.9,4.2053]
[1758740085565,2.15316106,213.96,213.91,7.49]
[1758740085762,3.31459385,213.95,213.9,4.2053]
[1758740085974,3.31459385,213.94,213.91,7.49]
[1758740086172,3.31459385,213.93,213.91,7.49]
[1758740086367,3.31459385,213.92,213.91,7.49]
[1758740086567,3.31459385,213.92,213.9,4.2053]
[1758740086774,3.31459385,213.91,213.9,11.6953]
[1758740087077,3.31459385,213.94,213.9,4.2053]
[1758740087372,3.31459385,213.93,213.9,4.2053]
[1758740087574,3.31459385,213.92,213.91,7.49]
[1758740087773,3.31459385,213.94,213.91,7.49]
[1758740087974,3.31459385,213.93,213.91,7.49]
[1758740088274,3.31459385,213.92,213.91,7.49]
[1758740088671,3.31459385,213.93,213.91,7.49]
[1758740088871,3.31459385,213.92,213.91,7.49]
[1758740089576,7.94,213.94,213.91,7.49]
[1758740089577,3.31459385,213.93,213.91,7.49]
[1758740089777,3.31459385,213.92,213.91,7.49]
[1758740090070,3.31459385,213.92,213.86,16.49929965]
[1758740090071,7.94,213.91,213.88,4.2057]
[1758740090276,3.31459385,213.9,213.88,11.6957]
[1758740091177,3.31459385,213.9,213.89,7.49]
[1758740091570,3.31459385,213.92,213.89,7.49]
[1758740091774,3.31459385,213.91,213.89,7.49]
[1758740091971,3.31459385,213.9,213.89,7.49]
[1758740092367,3.31459385,213.91,213.89,7.49]
[1758740092572,3.31459385,213.9,213.89,7.49]
[1758740092974,3.31459385,213.91,213.89,7.49]
[1758740093274,3.31459385,213.9,213.89,7.49]
[1758740093475,3.31459385,213.91,213.89,7.49]
[1758740094471,2.15316106,213.95,213.9,7.63]
[1758740094670,3.32322994,213.94,213.87,7.63]
[1758740094974,3.32322994,213.93,213.87,7.63]
[1758740095176,3.32322994,213.92,213.91,7.63]
[1758740095678,3.32322994,213.94,213.91,7.63]
[1758740095880,3.32322994,213.93,213.91,7.63]
[1758740096176,3.32322994,213.92,213.91,7.63]
[1758740098681,2.15316106,213.97,213.91,11.835]
[1758740098882,3.32308104,213.96,213.89,7.63]
[1758740099074,3.32308104,213.95,213.89,7.63]
[1758740099275,3.32308104,213.94,213.89,7.63]
[1758740099474,2.15316106,213.97,213.89,7.63]
[1758740099680,3.32325447,213.96,213.89,7.63]
[1758740099885,3.32325447,213.95,213.89,7.63]
[1758740100077,3.32325447,213.94,213.89,7.63]
[1758740100278,2.15316106,213.97,213.89,7.63]
[1758740100478,3.32375916,213.96,213.89,7.63]
[1758740100680,3.32375916,213.95,213.89,7.63]
[1758740100981,3.32375916,213.94,213.87,2.15316106]
[1758740101181,2.15316106,213.97,213.88,7.37]
[1758740101378,3.32385777,213.96,213.88,7.37]
[1758740101584,3.32385777,213.95,213.88,7.37]
[1758740101878,3.32385777,213.94,213.88,7.37]
[1758740102088,2.15316106,213.97,213.93,7.37]
[1758740102280,3.3239667,213.96,213.88,72.7931]
[1758740102480,3.3239667,213.95,213.93,4.2046]
[1758740102682,9.47316106,214.0,213.9,2.15316106]
[1758740102884,3.32395582,213.99,213.91,7.37]
[1758740103080,3.32395582,213.98,213.91,7.37]
[1758740103385,3.32395582,213.97,213.91,7.37]
[1758740103586,7.32,214.04,213.93,7.37]
[1758740103787,5.47806196,214.03,213.93,7.37]
[1758740103985,3.3249009,214.02,213.93,7.37]
[1758740104189,3.3249009,214.01,213.93,7.37]
[1758740104486,3.3249009,214.0,213.93,7.37]
[1758740104787,3.3249009,213.99,213.93,7.37]
[1758740104985,7.32,213.97,213.89,179.0389]
[1758740105284,7.32,213.97,213.91,7.37]
[1758740105588,7.32,214.0,213.91,7.37]
[1758740105783,10.64402763,213.99,213.95,4.2043]
[1758740105987,3.32402763,213.98,213.95,11.5743]
[1758740106186,3.32402763,213.97,213.95,11.5743]
[1758740106385,7.32,213.99,213.95,11.5743]
[1758740106588,3.3237609,213.98,213.95,11.5743]
[1758740106788,3.3237609,213.97,213.95,11.5743]
[1758740106977,2.15316106,214.01,213.95,11.5743]
[1758740107182,7.32,213.99,213.95,11.5743]
[1758740107389,3.32375891,213.98,213.95,11.5743]
[1758740108285,10.64375891,213.98,213.95,7.37]
[1758740108482,7.32,213.96,213.93,4.2047]
[1758740108687,7.32,213.94,213.91,7.37]
[1758740110190,7.32,213.94,213.91,11.5751]
[1758740110489,7.32,213.94,213.92,7.37]
[1758740111293,7.32,213.96,213.92,11.5748]
[1758740111591,3.32483508,213.95,213.93,7.37]
[1758740111790,3.32483508,213.94,213.93,7.37]
[1758740112092,3.32483508,213.95,213.93,7.37]
[1758740112584,3.32483508,213.94,213.93,7.37]
[1758740113083,3.32483508,213.94,213.92,11.5748]
[1758740114899,3.32483508,213.94,213.93,7.37]
[1758740115099,2.15316106,213.97,213.95,7.37]
[1758740115292,3.32580963,213.96,213.95,7.37]
[1758740116297,3.32580963,213.96,213.94,4.2046]
[1758740116492,10.64580963,213.95,213.92,4.2049]
[1758740116698,3.32580963,213.94,213.92,4.2049]
[1758740117191,10.64580963,213.94,213.92,4.2049]
[1758740117389,3.32580963,213.93,213.9,11.5753]
[1758740117594,10.64580963,213.92,213.9,7.37]
[1758740117894,3.32580963,213.91,213.9,7.37]
[1758740118393,3.32580963,213.91,213.87,7.37]
[1758740118697,2.15316106,213.96,213.93,4.2046]
[1758740118899,3.34658188,213.95,213.94,7.37]
[1758740121403,2.15316106,214.0,213.94,7.37]
[1758740121605,3.34814098,213.99,213.92,7.37]
[1758740121803,3.34814098,213.98,213.92,7.37]
[1758740122004,3.34814098,213.97,213.92,7.37]
[1758740122206,2.15316106,214.0,213.92,7.37]
[1758740122502,3.34776863,213.99,213.95,4.2042]
[1758740122696,10.66776863,213.98,213.95,4.2042]
[1758740122899,10.66776863,213.97,213.89,120.95]
[1758740123100,3.34776863,213.96,213.89,120.95]
[1758740123308,3.34776863,213.95,213.89,120.95]
[1758740123607,3.34776863,213.94,213.9,7.37]
[1758740123800,7.32,213.97,213.9,7.6]
[1758740123999,3.34699992,213.96,213.9,7.6]
[1758740124201,3.34699992,213.95,213.92,4.2048]
[1758740124400,3.34699992,213.94,213.92,11.8048]
[1758740124699,7.86,213.99,213.92,11.8048]
[1758740124898,3.34704541,213.98,213.92,11.8048]
[1758740125098,7.86,213.96,213.92,11.8048]
[1758740125300,3.34704541,213.95,213.92,11.8048]
[1758740125497,3.34704541,213.94,213.92,11.8048]
[1758740125808,7.86,213.96,213.92,11.8048]
[1758740126010,3.3466664,213.95,213.92,11.8048]
[1758740126198,3.3466664,213.94,213.92,11.8048]
[1758740126402,7.86,213.96,213.92,4.2048]
[1758740126609,3.34672183,213.95,213.92,11.8048]
[1758740126808,3.34672183,213.94,213.92,4.2048]
[1758740127009,7.86,213.96,213.93,7.6]
[1758740127210,3.34672934,213.95,213.93,7.6]
[1758740127410,3.34672934,213.94,213.93,11.8047]
[1758740127610,3.34672934,213.94,213.93,7.6]
[1758740127807,3.34672934,213.99,213.93,7.6]
[1758740128003,3.34672934,213.98,213.9,7.6]
[1758740128208,3.34672934,213.97,213.9,7.6]
[1758740128410,3.34672934,213.96,213.9,7.6]
[1758740128715,3.34672934,213.95,213.93,11.8048]
[1758740128914,3.34672934,213.94,213.93,11.8048]
[1758740129215,3.34672934,213.99,213.93,11.8048]
[1758740129512,7.86,213.97,213.93,11.8048]
[1758740129713,3.34672934,213.96,213.94,4.2045]
[1758740130010,3.34672934,213.95,213.94,11.8045]
[1758740130413,3.34672934,213.96,213.94,11.8045]
[1758740130610,3.34672934,213.95,213.94,11.8045]
[1758740130916,3.34672934,213.96,213.94,11.8045]
[1758740131110,3.34672934,213.95,213.94,11.8045]
[1758740131303,3.34672934,213.96,213.94,11.8045]
[1758740131502,3.34672934,213.95,213.94,11.8045]
[1758740131912,3.34672934,213.96,213.94,11.8045]
[1758740132112,3.34672934,213.95,213.94,11.8045]
[1758740132413,3.34672934,213.96,213.94,11.8045]
[1758740132609,3.34672934,213.95,213.94,11.8045]
[1758740132812,3.34672934,213.96,213.94,11.8045]
[1758740133013,3.34672934,213.95,213.94,11.8045]
[1758740133216,3.34672934,213.96,213.94,11.8045]
[1758740133406,3.34672934,213.95,213.94,11.8045]
[1758740133603,3.34672934,213.96,213.94,11.8045]
[1758740133808,3.34672934,213.95,213.94,11.8045]
[1758740134008,3.34672934,213.96,213.94,11.8045]
[1758740134210,3.34672934,213.95,213.94,11.8045]
[1758740134409,3.34672934,213.96,213.94,11.8045]
[1758740134609,3.34672934,213.95,213.94,11.8045]
[1758740134810,3.34672934,213.96,213.94,11.8045]
[1758740135109,3.34672934,213.95,213.94,11.8045]
[1758740135310,3.34672934,213.96,213.94,11.8045]
[1758740135510,3.34672934,213.95,213.94,11.8045]
[1758740137619,3.35108191,213.99,213.97,4.2039]
[1758740137820,3.35108191,213.98,213.97,11.8039]
[1758740146422,3.35108191,213.98,213.97,4.2039]
[1758740146721,11.21108191,213.98,213.97,4.2039]
[1758740146925,3.35108191,213.98,213.97,4.2039]
[1758740147122,3.35108191,213.98,213.97,11.8039]
[1758740152426,7.86,214.04,214.01,4.2031]
[1758740152631,7.86,214.04,214.02,7.6]
[1758740152632,3.35240341,214.03,214.02,7.6]
[1758740155431,7.52,214.1,214.02,11.8028]
[1758740155824,7.52,214.1,214.02,7.6]
[1758740157331,7.52,214.1,214.03,4.2027]
[1758740157938,10.88390804,214.1,214.03,4.2027]
[1758740158530,10.88390804,214.1,214.04,4.2025]
[1758740159335,7.52,214.09,214.05,4.2023]
[1758740159535,3.36390804,214.1,214.05,4.2023]
[1758740159737,7.52,214.09,214.05,4.2023]
[1758740160032,3.36390804,214.1,214.05,4.2023]
[1758740160241,7.85,214.09,214.05,4.2023]
[1758740160539,3.36390804,214.1,214.05,4.2023]
[1758740160933,7.85,214.09,214.05,4.2023]
[1758740161241,7.85,214.1,214.02,7.59]
[1758740161634,7.85,214.1,214.08,11.7917]
[1758740162436,8.56631026,214.13,214.08,4.2017]
[1758740162942,7.85,214.09,214.0,7.59]
[1758740164245,3.36390804,214.1,214.04,4.2025]
[1758740164439,7.85,214.09,214.0,7.59]
[1758740164632,7.85,214.07,214.0,7.59]
[1758740164836,3.33159815,214.06,214.0,7.59]
[1758740165037,3.33159815,214.05,214.01,7.59]
[1758740165239,3.33159815,214.04,213.98,7.59]
[1758740165439,3.33159815,214.03,213.98,7.59]
[1758740165734,7.85,214.07,213.98,7.59]
[1758740165939,3.33150533,214.06,213.98,7.59]
[1758740166144,3.33150533,214.05,213.98,7.59]
[1758740166346,3.33150533,214.04,214.03,7.59]
[1758740168941,11.18150533,214.04,214.02,4.2029]
[1758740169142,7.85,214.04,214.02,4.2029]
[1758740169350,3.33099043,214.03,214.02,4.2029]
[1758740170042,3.33099043,214.03,214.02,11.7929]
[1758740171550,3.33099043,214.03,214.02,4.2029]
[1758740171844,11.18099043,214.03,214.0,4.2033]
[1758740172045,11.18099043,214.02,213.96,7.59]
[1758740172253,7.85,214.0,213.97,7.59]
[1758740172947,7.85,214.0,213.94,7.59]
[1758740173147,7.85,214.0,213.98,11.7937]
[1758740175344,3.36390804,214.04,213.98,11.7937]
[1758740175540,11.18328135,214.03,213.99,4.2035]
[1758740175747,3.33328135,214.02,214.0,7.59]
[1758740176746,3.33328135,214.02,213.95,7.59]
[1758740177251,3.33328135,214.02,214.0,4.2033]
[1758740178354,3.33328135,214.02,214.0,11.7933]
[1758740178954,3.33328135,214.01,214.0,11.7933]
[1758740179357,3.33328135,214.01,214.0,4.2033]
[1758740180960,3.33328135,214.01,214.0,11.7933]
[1758740183667,11.18328135,214.01,213.98,4.2037]
[1758740183962,3.33328135,214.0,213.99,7.46]
[1758740185155,5.48553002,214.0,213.96,11.6641]
[1758740185356,11.08328135,213.99,213.9,7.46]
[1758740185560,3.33328135,213.98,213.92,7.46]
[1758740185760,3.33328135,213.97,213.92,7.46]
[1758740185963,3.33328135,213.96,213.91,37.9]
[1758740186161,7.75,213.99,213.92,7.46]
[1758740186366,3.32387849,213.98,213.92,7.46]
[1758740186561,3.32387849,213.97,213.94,7.46]
[1758740186761,3.32387849,213.96,213.93,4.2046]
[1758740186961,7.75,213.99,213.93,11.6646]
[1758740187164,11.07407116,213.98,213.94,7.46]
[1758740187364,3.32407116,213.97,213.94,7.46]
[1758740187564,3.32407116,213.97,213.94,4.2045]
[1758740187765,3.32407116,213.97,213.95,7.46]
[1758740190071,3.32407116,213.97,213.94,4.2045]
[1758740190264,3.32407116,213.97,213.95,7.46]
[1758740191072,3.32407116,213.96,213.95,7.46]
[1758740191472,11.07407116,213.96,213.94,4.2045]
[1758740191672,3.32407116,213.95,213.94,4.2045]
[1758740192764,3.32407116,213.95,213.94,11.6645]
[1758740199274,2.15224867,213.99,213.95,4.2043]
[1758740199474,7.75,213.97,213.95,4.2043]
[1758740199675,3.3167821,213.96,213.95,4.2043]
[1758740206176,3.3167821,213.96,213.95,11.6643]
[1758740206575,7.75,214.0,213.97,11.6639]
[1758740206770,3.31676312,213.99,213.97,11.6639]
[1758740207076,3.31676312,213.98,213.97,11.6639]
[1758740207275,7.75,214.0,213.97,11.6639]
[1758740207276,3.31676312,213.99,213.97,11.6639]
[1758740208381,11.06676312,213.99,213.97,11.6639]
[1758740208574,3.31676312,213.98,213.97,11.6639]
[1758740209376,11.06676312,213.98,213.95,11.6643]
[1758740209581,3.31676312,213.97,213.95,11.6643]
[1758740209983,3.31676312,213.97,213.96,7.46]
[1758740210177,3.31676312,213.97,213.95,4.2043]
[1758740210381,3.3192381,213.96,213.95,4.2043]
[1758740210883,3.3192381,213.96,213.95,11.6643]
[1758740212584,11.0692381,213.96,213.9,7.46]
[1758740212785,11.0692381,213.95,213.87,115.65224867]
[1758740212981,3.3192381,213.94,213.88,7.46]
[1758740213180,3.3192381,213.94,213.93,7.46]
[1758740214188,3.32119612,213.96,213.95,7.64]
[1758740214583,10.85119612,213.96,213.94,4.2046]
[1758740214784,3.32119612,213.95,213.94,4.2046]
[1758740215290,9.68224867,214.0,213.96,4.204]
[1758740215491,3.32162374,213.99,213.97,7.64]
[1758740215689,3.32162374,213.98,213.97,7.64]
[1758740219497,7.53,213.97,213.94,11.8445]
[1758740219698,3.32162374,213.96,213.94,11.8445]
[1758740219886,3.32162374,213.95,213.94,11.8445]
[1758740220090,7.25,213.95,213.94,4.2045]
[1758740220297,3.32162374,213.95,213.94,11.4645]
[1758740220694,3.32399549,213.95,213.92,4.2049]
[1758740220893,12.72624416,213.94,213.86,7.26]
[1758740221098,3.32399549,213.93,213.86,7.26]
[1758740221299,3.32399549,213.92,213.86,7.26]
[1758740221503,9.40224867,213.94,213.86,7.26]
[1758740221706,3.32317447,213.93,213.86,7.26]
[1758740221998,3.32317447,213.92,213.91,11.4651]
[1758740222403,3.32317447,213.93,213.91,11.4651]
[1758740222698,3.32317447,213.92,213.91,11.4651]
[1758740222895,3.32317447,213.93,213.91,11.4651]
[1758740223095,3.32317447,213.92,213.91,11.4651]
[1758740223288,3.32317447,213.93,213.91,11.4651]
[1758740223599,3.32317447,213.92,213.91,11.4651]
[1758740223795,3.32317447,213.92,213.91,4.2051]
[1758740224003,3.32317447,213.93,213.91,4.2051]
[1758740224192,2.15224867,213.97,213.95,4.2043]
[1758740224395,2.15224867,213.97,213.96,7.26]
[1758740233410,2.15224867,214.0,213.96,4.2041]
[1758740233708,9.40224867,214.0,213.97,7.26]
[1758740234213,9.40224867,214.0,213.97,11.4639]
[1758740235702,2.15224867,214.01,213.99,7.26]
[1758740235903,2.15224867,214.01,213.94,7.26]
[1758740236299,3.31401179,214.0,213.94,7.26]
[1758740236501,3.31401179,213.99,213.94,7.26]
[1758740236701,3.31401179,213.98,213.94,7.26]
[1758740236900,3.31401179,213.97,213.94,7.26]
[1758740237102,3.31401179,213.96,213.94,7.26]
[1758740237408,2.15224867,214.01,213.98,7.26]
[1758740237605,3.31382287,214.0,213.98,7.26]
[1758740237810,3.31382287,213.99,213.98,7.26]
[1758740243015,10.56382287,213.99,213.96,7.26]
[1758740243215,3.31382287,213.98,213.96,7.26]
[1758740243410,3.31382287,213.97,213.96,7.26]
[1758740245016,3.31382287,213.97,213.95,4.2043]
[1758740245219,3.31382287,213.96,213.9,7.71]
[1758740245412,5.20240222,214.03,213.9,7.71]
[1758740245413,3.31382287,213.95,213.9,7.71]
[1758740245608,7.21,214.0,213.9,7.71]
[1758740245813,3.36466745,213.99,213.9,7.71]
[1758740246008,3.36466745,213.98,213.9,7.71]
[1758740246216,3.36466745,213.97,213.9,7.71]
[1758740246511,3.36466745,213.96,213.9,7.71]
[1758740246712,3.36466745,213.95,213.9,7.71]
[1758740246913,7.21,214.0,213.9,7.71]
[1758740247114,3.36500861,213.99,213.9,7.71]
[1758740247421,3.36500861,213.98,213.9,7.71]
[1758740247607,3.36500861,213.97,213.9,7.71]
[1758740247813,3.36500861,213.96,213.9,7.71]
[1758740248013,3.36500861,213.95,213.89,162.70262087]
[1758740248213,3.36500861,213.94,213.89,162.70262087]
[1758740248515,3.36322426,213.93,213.9,7.71]
[1758740248714,7.21,214.0,213.9,7.71]
[1758740248915,9.40550222,214.02,213.94,4.2045]
[1758740248916,3.36321549,213.99,213.94,4.2045]
[1758740249220,7.21,213.97,213.94,11.9145]
[1758740249517,3.36321549,213.96,213.94,11.9145]
[1758740249718,3.36321549,213.95,213.94,11.9145]
[1758740250724,3.36321549,213.95,213.94,4.2045]
[1758740251929,7.21,213.94,213.92,4.2049]
[1758740252118,3.36321549,213.93,213.92,4.2049]
[1758740252322,10.57321549,213.93,213.92,4.2049]
[1758740252530,10.57321549,213.93,213.91,7.71]
[1758740252717,3.36321549,213.92,213.91,7.71]
[1758740256324,3.36321549,213.92,213.9,4.2053]
[1758740256527,10.57321549,213.91,213.88,11.9157]
[1758740256830,7.21,213.89,213.88,4.2057]
[1758740257031,7.21,213.89,213.86,7.71]
[1758740257032,10.57321549,213.89,213.86,7.71]
[1758740257328,3.36321549,213.88,213.86,7.71]
[1758740257530,3.36321549,213.88,213.87,4.2059]
[1758740260331,7.21,213.94,213.87,4.2059]
[1758740260530,3.36031127,213.93,213.87,4.2059]
[1758740260726,3.36031127,213.92,213.87,11.9159]
[1758740261034,7.21,213.9,213.87,11.9159]
[1758740261229,3.36031127,213.89,213.87,11.9159]
[1758740261434,7.21,213.9,213.87,11.9159]
[1758740261729,3.35888544,213.89,213.87,11.9159]
[1758740261929,7.21,213.9,213.88,4.2057]
[1758740262130,3.35902193,213.89,213.88,11.9157]
[1758740263427,3.35902193,213.89,213.88,7.71]
[1758740264335,7.21,213.92,213.85,7.71]
[1758740264534,3.35770218,213.91,213.85,7.71]
[1758740264736,3.35770218,213.9,213.84,7.71]
[1758740264936,7.21,213.92,213.84,7.71]
[1758740265137,3.35785219,213.91,213.84,7.71]
[1758740265331,3.35785219,213.9,213.84,7.71]
[1758740265630,7.21,213.92,213.84,7.71]
[1758740265831,3.35766617,213.91,213.84,7.71]
[1758740266033,3.35766617,213.9,213.84,7.71]
[1758740266338,7.21,213.92,213.89,11.9156]
[1758740266538,3.35720539,213.91,213.89,11.9156]
[1758740266739,3.35720539,213.9,213.89,11.9156]
[1758740268439,7.56732087,213.98,213.9,4.2052]
[1758740268641,10.5697884,213.97,213.9,4.2052]
[1758740268840,3.3597884,213.96,213.9,4.2052]
[1758740269036,7.21,213.94,213.9,11.9152]
[1758740269238,10.5697884,213.93,213.9,11.9152]
[1758740269439,3.3597884,213.92,213.9,11.9152]
[1758740269638,3.3597884,213.91,213.9,11.9152]
[1758740280654,3.36342087,213.98,213.92,4.2049]
[1758740280850,3.35936922,213.97,213.92,4.2049]
[1758740281052,7.67,213.95,213.92,4.2049]
[1758740281251,11.02936922,213.94,213.92,4.2049]
[1758740281450,3.35936922,213.93,213.92,4.2049]
[1758740281853,3.35936922,213.93,213.92,11.8649]
[1758740283852,5.20240222,214.01,213.95,11.8643]
[1758740284048,3.3607597,214.0,213.95,11.8643]
[1758740284251,7.67,213.98,213.95,11.8643]
[1758740284450,11.0307597,213.97,213.95,11.8643]
[1758740284650,3.3607597,213.96,213.95,11.8643]
[1758740290657,12.87240222,214.03,213.99,7.66]
[1758740290852,11.0338499,214.02,213.99,7.66]
[1758740291058,11.0338499,214.01,213.99,7.66]
[1758740291361,3.3638499,214.0,213.99,7.66]
[1758740302567,3.3638499,214.0,213.98,4.2037]
[1758740302870,3.3638499,213.99,213.98,11.8637]
[1758740303469,11.0338499,213.99,213.96,4.2041]
[1758740303675,11.0338499,213.98,213.96,4.2041]
[1758740303875,3.3638499,213.97,213.96,12.1241]
[1758740312981,11.2738499,213.97,213.96,4.2041]
[1758740313480,3.3638499,213.97,213.96,12.1241]
[1758740317182,7.91,213.96,213.89,7.92]
[1758740317387,2.15258621,213.94,213.89,7.92]
[1758740317583,3.3638499,213.93,213.87,7.92]
[1758740317778,3.3638499,213.92,213.87,7.92]
[1758740317983,10.06258621,213.96,213.87,7.92]
[1758740318181,3.35440762,213.95,213.87,7.92]
[1758740318375,3.35440762,213.94,213.87,7.92]
[1758740318577,3.35440762,213.93,213.87,7.92]
[1758740318777,3.35440762,213.92,213.87,7.92]
[1758740318978,10.06258621,213.96,213.87,7.92]
[1758740319173,3.35431603,213.95,213.91,4.205]
[1758740319382,11.26431603,213.94,213.91,4.205]
[1758740319586,3.35431603,213.93,213.91,4.205]
[1758740319782,3.35431603,213.92,213.91,4.205]
[1758740321076,3.35431603,213.92,213.91,12.125]
[1758740322683,1.603e-05,213.92,213.91,12.125]
[1758740322876,2.15258621,213.96,213.94,4.2044]
[1758740323083,10.06258621,213.96,213.94,4.2044]
[1758740323584,7.91,213.95,213.94,4.2044]
[1758740329488,2.15258621,213.96,213.94,4.2044]
[1758740329691,7.91,213.97,213.96,4.2041]
[1758740330386,2.15258621,214.0,213.93,7.92]
[1758740331190,2.15258621,214.0,213.98,12.1237]
[1758740331792,10.06258621,214.0,213.98,12.1237]
[1758740334798,3.37769002,213.99,213.98,12.1237]
[1758740337701,11.20769002,213.99,213.98,4.2037]
[1758740338305,7.83,213.98,213.96,4.2041]
[1758740338494,11.20769002,213.97,213.96,4.2041]
[1758740338697,3.37769002,213.97,213.96,4.2041]
[1758740338995,3.37769002,213.97,213.96,11.6441]
[1758740339597,3.37769002,213.97,213.96,4.2041]
[1758740340802,3.37769002,213.97,213.96,11.9441]
[1758740344602,3.37769002,213.97,213.96,7.74]
[1758740354822,7.26,213.96,213.93,11.9447]
[1758740355017,3.37769002,213.95,213.93,11.9447]
[1758740355215,3.37769002,213.94,213.93,11.9447]
[1758740355617,3.37769002,213.94,213.93,7.74]
[1758740355821,3.37769002,213.94,213.92,7.74]
[1758740356020,3.37769002,213.93,213.92,7.74]
[1758740359616,9.002e-05,213.93,213.92,7.74]
[1758740360722,9.41258621,213.99,213.93,4.2045]
[1758740362026,2.15258621,213.99,213.94,4.2044]
[1758740362222,7.26,213.98,213.94,11.9444]
[1758740362420,2.15258621,213.99,213.94,11.9444]
[1758740363114,7.26,213.98,213.94,11.9444]
[1758740363317,2.15258621,213.99,213.94,11.9444]
[1758740364028,7.36,213.98,213.94,11.9444]
[1758740365026,7.36,213.98,213.94,4.2044]
[1758740365227,7.36,213.98,213.94,11.7244]
[1758740365421,7.36,213.98,213.95,7.52]
[1758740368425,7.36,213.98,213.96,7.52]
[1758740368631,5.20240222,214.01,213.9,65.4151]
[1758740368827,7.36,214.0,213.96,4.2041]
[1758740369133,7.36,214.0,213.97,7.52]
[1758740369332,5.20240222,214.01,213.97,7.52]
[1758740369627,7.36,214.0,213.97,7.52]
[1758740370027,5.20240222,214.01,213.97,7.52]
[1758740370333,5.20240222,214.01,213.96,1.0]
[1758740370524,15.97721971,214.04,213.97,7.52]
[1758740370525,5.20240222,214.03,213.97,7.52]
[1758740371126,5.20240222,214.03,213.98,4.2036]
[1758740371431,5.20240222,214.03,213.98,11.7236]
[1758740371634,7.36,214.01,213.98,11.7236]
[1758740371826,3.35682735,214.0,213.98,11.7236]
[1758740372026,3.35682735,213.99,213.98,11.7236]
[1758740388147,10.71682735,213.99,213.98,4.2036]
[1758740388348,10.71682735,213.99,213.96,12.724]
[1758740388649,3.35682735,213.98,213.96,12.724]
[1758740388850,3.35682735,213.97,213.96,12.724]
[1758740389552,3.35682735,213.98,213.96,12.724]
[1758740389848,7.36,213.99,213.96,12.724]
[1758740389849,3.35682735,213.97,213.96,12.724]
[1758740390244,3.35682735,213.98,213.96,12.724]
[1758740390547,3.35682735,213.97,213.96,12.724]
[1758740390749,3.35682735,213.98,213.96,12.724]
[1758740390943,3.35682735,213.97,213.96,12.724]
[1758740391144,3.35682735,213.98,213.96,12.724]
[1758740391345,3.35682735,213.97,213.96,12.724]
[1758740391650,8.56640648,214.04,213.96,12.724]
[1758740391651,10.71682735,213.99,213.96,12.724]
[1758740391850,3.35682735,213.98,213.96,12.724]
[1758740392050,3.35682735,213.97,213.96,12.724]
[1758740392349,3.35682735,213.98,213.96,5.204]
[1758740392550,3.35682735,213.97,213.96,5.204]
[1758740392942,3.35682735,213.98,213.96,12.724]
[1758740393146,3.35682735,213.97,213.96,12.724]
[1758740393545,3.35682735,213.98,213.96,12.724]
[1758740393747,3.35682735,213.97,213.96,12.724]
[1758740394146,3.35682735,213.98,213.96,12.724]
[1758740394351,3.35682735,213.97,213.96,12.724]
[1758740394652,3.35682735,213.98,213.96,12.724]
[1758740394855,3.35682735,213.97,213.96,12.724]
[1758740395244,11.12682735,213.98,213.96,12.724]
[1758740395448,3.35682735,213.97,213.96,12.724]
[1758740400359,3.35682735,214.01,213.96,5.204]
[1758740400560,3.35682735,214.0,213.97,4.2038]
[1758740400749,3.35682735,213.99,213.97,4.2038]